bitfinex/quotes_SOLUSD_20240824
["timestamp","ask_amount","ask_price","bid_price","bid_amount"]
[1724499664353,45.0,157.96,157.87,0.8639837]
[1724499667256,6.33,157.98,157.87,0.8639837]
[1724499667440,45.0,157.97,157.87,25.48741953]
[1724499667750,22.3362,157.99,157.89,24.62343583]
[1724499667927,22.3362,157.99,157.91,24.62343583]
[1724499668948,22.3362,157.99,157.92,0.86314354]
[1724499669134,22.3362,157.99,157.91,24.62343583]
[1724499669827,22.3362,157.99,157.92,0.25098]
[1724499670248,16.285,157.99,157.93,24.62343583]
[1724499670447,16.285,157.99,157.94,0.86251603]
[1724499670836,22.9128,158.03,157.94,0.86251603]
[1724499671037,1.58245983,158.02,157.93,24.62343583]
[1724499671653,1.5824762,158.01,157.93,24.62343583]
[1724499672538,1.58247634,158.02,157.93,24.62343583]
[1724499673228,1.58247642,158.01,157.93,24.62343583]
[1724499673439,1.58247764,158.02,157.93,24.62343583]
[1724499674174,1.58247764,158.02,157.94,0.25098]
[1724499676160,22.9128,158.03,157.95,24.62343583]
[1724499676356,22.9128,158.03,157.96,0.25098]
[1724499677566,16.3361,158.03,157.97,24.62343583]
[1724499677858,6.5767,158.07,157.99,24.62343583]
[1724499678259,8.15858506,158.07,157.99,24.62343583]
[1724499678466,6.5767,158.07,157.99,24.62343583]
[1724499678758,8.1584745,158.07,158.0,0.25098]
[1724499678935,8.1584745,158.07,157.95,24.62343583]
[1724499679135,14.4848745,158.07,157.95,24.62343583]
[1724499680141,1.58216545,158.06,157.95,24.62343583]
[1724499680544,1.58216545,158.06,157.96,45.25098]
[1724499680951,1.58216545,158.06,157.96,0.25098]
[1724499681138,46.58216545,158.06,157.96,0.25098]
[1724499681341,1.58216545,158.06,157.96,0.25098]
[1724499681638,46.58216545,158.06,157.96,0.25098]
[1724499681842,52.90916545,158.06,157.96,0.25098]
[1724499683266,6.3271,158.05,157.93,24.62343583]
[1724499683458,17.91843847,158.04,157.94,45.25098]
[1724499683860,6.3279,158.03,157.92,23.1053]
[1724499684045,1.58247914,158.02,157.93,28.17355526]
[1724499684363,1.58247914,158.02,157.94,3.55012158]
[1724499685170,7.91077914,158.02,157.94,3.55012158]
[1724499685468,6.5353,158.01,157.94,3.55012158]
[1724499685765,16.6581,157.99,157.89,28.17355741]
[1724499685965,16.6581,157.99,157.9,3.55012158]
[1724499685966,1.58282085,157.98,157.9,3.55012158]
[1724499687542,1.58282085,157.98,157.89,0.12549]
[1724499687871,1.58282085,157.98,157.88,89.87441583]
[1724499688075,1.58282085,157.98,157.88,20.0]
[1724499688373,46.58282085,157.98,157.89,3.55102476]
[1724499688549,46.58282085,157.98,157.88,3.55102476]
[1724499689163,52.91272085,157.98,157.88,3.55102476]
[1724499689465,23.1934,157.97,157.88,3.55102476]
[1724499689668,1.58306003,157.96,157.88,3.55102476]
[1724499689861,1.58306003,157.95,157.88,3.55102476]
[1724499690942,1.58306033,157.96,157.87,24.62343583]
[1724499691143,23.1934,157.97,157.88,0.25098]
[1724499691144,1.58306045,157.95,157.88,0.25098]
[1724499691365,1.58306045,157.95,157.88,3.80258075]
[1724499691968,1.58306024,157.96,157.88,3.80258075]
[1724499692341,1.58306024,157.96,157.88,24.87441583]
[1724499693039,23.1934,157.97,157.88,24.87441583]
[1724499693263,1.58306007,157.96,157.88,24.87441583]
[1724499694050,23.1934,157.97,157.89,0.8636307]
[1724499695250,1.58305938,157.96,157.88,24.87441583]
[1724499696772,23.1934,157.97,157.88,24.87441583]
[1724499697167,1.58305953,157.96,157.88,24.87441583]
[1724499697469,1.5830594,157.96,157.89,3.5515674]
[1724499698072,1.5830588,157.95,157.88,24.87441583]
[1724499698258,1.5830588,157.96,157.89,3.551587]
[1724499698453,1.58305909,157.95,157.89,13.41758867]
[1724499698654,1.58305909,157.95,157.89,9.86600167]
[1724499698848,25.37800167,157.93,157.86,3.551587]
[1724499699159,1.58382061,157.92,157.85,3.55263918]
[1724499699459,15.512,157.93,157.86,10.73085926]
[1724499699668,17.09530594,157.93,157.88,9.86600167]
[1724499700357,15.512,157.93,157.88,9.86600167]
[1724499700551,1.58313516,157.92,157.85,3.55263918]
[1724499700757,1.58313516,157.92,157.83,24.66716557]
[1724499701053,1.58313516,157.92,157.84,3.55263918]
[1724499701250,17.09537734,157.93,157.85,24.66716557]
[1724499701467,17.09537734,157.93,157.86,3.55223728]
[1724499702677,17.09537734,157.93,157.86,3.55225466]
[1724499702979,15.512,157.93,157.87,24.66716557]
[1724499703772,17.09516905,157.93,157.87,24.66716557]
[1724499704085,17.09516905,157.93,157.89,24.66716557]
[1724499704249,20.0,158.08,157.91,24.66716557]
[1724499704250,15.512,157.97,157.91,24.66716557]
[1724499704493,15.512,157.97,157.89,24.66716557]
[1724499704653,15.512,157.97,157.9,3.55115148]
[1724499704962,15.512,157.97,157.89,24.66716557]
[1724499705161,17.09496708,157.97,157.9,3.55132697]
[1724499705363,17.09496708,157.97,157.9,3.55127392]
[1724499706678,15.512,157.97,157.91,24.66716557]
[1724499706974,15.512,157.97,157.92,3.80180867]
[1724499707272,15.512,157.97,157.93,0.86258748]
[1724499707478,15.512,157.97,157.92,3.55082867]
[1724499707781,17.09461462,157.97,157.91,24.66716557]
[1724499707977,17.09461462,157.97,157.87,24.66716557]
[1724499708288,17.09461462,157.97,157.88,48.80218092]
[1724499708583,17.09461462,157.97,157.89,3.55120092]
[1724499709484,17.09461462,157.97,157.89,7.10283802]
[1724499710285,17.09461462,157.97,157.89,3.55141901]
[1724499710494,17.09461462,157.97,157.89,3.55127293]
[1724499710696,17.09461462,157.97,157.89,28.2184385]
[1724499711194,15.512,157.97,157.9,0.25098]
[1724499711492,15.512,157.97,157.91,24.66716557]
[1724499711810,15.512,157.97,157.92,24.66716557]
[1724499712371,15.512,157.97,157.9,0.25098]
[1724499712372,17.09470596,157.97,157.9,0.25098]
[1724499712679,17.09470596,157.97,157.9,24.66716557]
[1724499714194,17.09470596,157.97,157.89,0.25098]
[1724499715279,23.42500596,157.97,157.86,24.66716557]
[1724499715470,23.42500596,157.97,157.87,0.25098]
[1724499716378,41.76187153,157.97,157.84,24.66716557]
[1724499716675,21.1562,157.95,157.84,24.66716557]
[1724499716882,1.58331803,157.94,157.84,24.66716557]
[1724499717599,1.58331803,157.94,157.85,0.25098]
[1724499719714,46.58331803,157.94,157.85,0.12549]
[1724499719898,46.58331803,157.94,157.84,24.66716557]
[1724499720211,1.58331803,157.94,157.84,24.66716557]
[1724499720885,1.58331803,157.94,157.85,0.12549]
[1724499721499,21.1562,157.93,157.82,31.25062551]
[1724499721695,1.58349454,157.92,157.82,24.66716557]
[1724499722596,1.58349454,157.92,157.83,0.25098]
[1724499723008,7.91579454,157.92,157.83,0.12549]
[1724499723212,15.099,157.91,157.82,24.66716557]
[1724499723417,1.58368133,157.9,157.82,24.66716557]
[1724499723717,1.58366605,157.89,157.81,0.975111]
[1724499723920,1.58366605,157.89,157.82,0.25098]
[1724499724718,1.58365139,157.89,157.81,20.849621]
[1724499725217,7.68688264,157.88,157.81,0.849621]
[1724499725428,15.3162,157.87,157.81,0.849621]
[1724499725725,1.583844,157.86,157.81,0.849621]
[1724499729314,15.3162,157.87,157.81,0.849621]
[1724499729315,16.66795988,157.87,157.81,0.849621]
[1724499729614,15.3162,157.87,157.82,0.25098]
[1724499729820,15.3162,157.87,157.82,45.25098]
[1724499730318,15.3162,157.87,157.82,0.25098]
[1724499730498,15.3162,157.87,157.81,25.51678657]
[1724499730695,16.89990533,157.87,157.81,25.51678657]
[1724499730894,16.89990533,157.87,157.81,0.849621]
[1724499731117,15.3162,157.87,157.81,0.849621]
[1724499731505,15.3162,157.87,157.81,25.51678657]
[1724499732800,16.90008959,157.87,157.81,0.849621]
[1724499733610,15.3162,157.87,157.81,0.849621]
[1724499734002,15.3162,157.87,157.82,0.86511542]
[1724499734517,15.3162,157.87,157.81,25.51678657]
[1724499734717,15.3162,157.87,157.82,45.0]
[1724499735039,15.3162,157.87,157.83,0.12549]
[1724499735604,15.3162,157.87,157.84,24.66716557]
[1724499735854,15.3162,157.87,157.85,0.86473499]
[1724499736640,15.3162,157.87,157.84,24.66716557]
[1724499737206,15.3162,157.87,157.85,0.99022016]
[1724499737412,16.5339,157.91,157.85,0.12549]
[1724499737606,16.5339,157.91,157.86,24.66716557]
[1724499737803,16.5339,157.91,157.87,0.86400565]
[1724499739226,16.5339,157.91,157.86,24.66716557]
[1724499739422,16.5339,157.91,157.87,0.25098]
[1724499739810,16.5339,157.91,157.87,45.25098]
[1724499740066,16.5339,157.91,157.87,0.25098]
[1724499740406,16.5339,157.91,157.87,45.25098]
[1724499743518,16.5339,157.91,157.87,0.25098]
[1724499743717,16.5339,157.91,157.87,0.12549]
[1724499746813,18.11710074,157.91,157.82,24.66716557]
[1724499747132,18.11710074,157.91,157.83,20.0]
[1724499747338,18.11710074,157.91,157.81,0.849621]
[1724499748911,18.11710074,157.91,157.81,20.849621]
[1724499749745,18.11710074,157.91,157.82,45.25098]
[1724499750732,16.5339,157.91,157.83,0.86490965]
[1724499750918,16.5339,157.91,157.84,0.25098]
[1724499751120,16.5339,157.91,157.85,0.12549]
[1724499751314,16.5339,157.91,157.82,45.25098]
[1724499755122,16.5339,157.91,157.83,0.86438004]
[1724499755332,16.5339,157.91,157.84,0.25098]
[1724499755535,16.5339,157.91,157.84,0.86438004]
[1724499755751,16.5339,157.91,157.85,0.12549]
[1724499758776,16.5339,157.91,157.85,1.11522464]
[1724499758931,16.5339,157.91,157.88,9.87271549]
[1724499759434,16.5339,157.91,157.86,9.87271549]
[1724499759637,16.5339,157.91,157.87,0.25098]
[1724499761324,16.5339,157.91,157.88,9.87271549]
[1724499763454,16.5339,157.91,157.87,0.25098]
[1724499763752,16.5339,157.91,157.87,10.12369549]
[1724499764140,16.5339,157.91,157.88,45.0]
[1724499764445,16.5339,157.91,157.89,0.12549]
[1724499771252,16.5339,157.91,157.89,3.67733293]
[1724499771661,16.5339,157.91,157.89,3.55184293]
[1724499771955,16.5339,157.91,157.86,3.55205859]
[1724499772165,16.5339,157.91,157.87,3.55205859]
[1724499772346,16.5339,157.91,157.88,3.55205859]
[1724499772546,16.5339,157.91,157.86,3.55205859]
[1724499772750,16.5339,157.91,157.87,3.55205859]
[1724499772947,16.5339,157.91,157.88,3.55208034]
[1724499773345,16.5339,157.91,157.86,3.55208034]
[1724499773648,16.5339,157.91,157.87,3.55208034]
[1724499773850,18.1171687,157.91,157.88,3.55208034]
[1724499774056,18.1171687,157.91,157.86,3.55208034]
[1724499774262,16.5339,157.91,157.87,3.55208034]
[1724499774466,16.5339,157.91,157.88,3.55208034]
[1724499774762,18.11725168,157.91,157.89,3.55208034]
[1724499774955,16.5339,157.91,157.86,3.55208034]
[1724499775141,16.5339,157.91,157.87,3.55208034]
[1724499775340,16.5339,157.91,157.88,3.55208034]
[1724499775548,16.5339,157.91,157.86,3.55208034]
[1724499775735,16.5339,157.91,157.87,3.55208034]
[1724499775951,16.5339,157.91,157.85,9.87271549]
[1724499776263,16.5339,157.91,157.86,3.55246308]
[1724499776565,16.5339,157.91,157.85,9.87271549]
[1724499776763,1.58338685,157.9,157.87,3.55238082]
[1724499777360,1.58338685,157.9,157.86,3.55238082]
[1724499777560,6.0008,157.87,157.82,4.41804381]
[1724499777762,6.0008,157.87,157.83,3.55309773]
[1724499777936,6.0008,157.87,157.84,3.55309773]
[1724499778143,6.0008,157.87,157.85,3.55309773]
[1724499778464,6.0008,157.87,157.82,3.55309773]
[1724499780767,6.0008,157.87,157.82,0.25098]
[1724499782166,6.0008,157.87,157.81,45.849621]
[1724499782346,6.0008,157.87,157.81,0.849621]
[1724499783842,1.58373979,157.86,157.81,0.849621]
[1724499784859,6.0008,157.87,157.81,0.849621]
[1724499784860,7.58467222,157.87,157.81,0.849621]
[1724499785367,6.0008,157.87,157.81,0.849621]
[1724499785579,1.5838974,157.86,157.81,0.849621]
[1724499788164,15.4856,157.85,157.81,0.849621]
[1724499789925,15.4856,157.85,157.81,10.72233649]
[1724499790186,15.4856,157.85,157.83,9.87271549]
[1724499790560,6.0008,157.87,157.83,9.87271549]
[1724499790973,6.0008,157.87,157.81,0.849621]
[1724499791163,6.0008,157.87,157.83,9.87271549]
[1724499791567,6.0008,157.87,157.84,0.12549]
[1724499791875,6.0008,157.87,157.83,9.87271549]
[1724499792558,6.0008,157.87,157.82,10.12369549]
[1724499793152,15.4856,157.89,157.82,10.12369549]
[1724499793387,15.4856,157.89,157.85,9.87271549]
[1724499794169,15.4856,157.89,157.83,9.87271549]
[1724499794473,1.5834879,157.88,157.82,0.25098]
[1724499794668,1.5834879,157.88,157.81,0.849621]
[1724499794870,17.06943472,157.89,157.81,0.849621]
[1724499795089,17.06943472,157.89,157.82,0.12549]
[1724499795784,17.06943472,157.89,157.82,9.99820549]
[1724499795958,17.06943472,157.89,157.81,10.72233649]
[1724499796371,23.40293472,157.89,157.81,10.72233649]
[1724499797787,33.27565021,157.89,157.81,0.849621]
[1724499798288,31.69181549,157.89,157.81,0.849621]
[1724499798587,1.58396299,157.88,157.81,0.849621]
[1724499799082,22.415,157.87,157.81,0.849621]
[1724499799388,1.58412,157.86,157.81,0.849621]
[1724499799684,1.58412251,157.85,157.81,0.849621]
[1724499800570,16.1032,157.84,157.81,0.849621]
[1724499800903,1.58445045,157.83,157.81,0.849621]
[1724499801089,16.1032,157.84,157.81,0.849621]
[1724499801090,1.58443632,157.82,157.81,0.849621]
[1724499804082,16.1032,157.84,157.81,0.849621]
[1724499804792,16.1032,157.84,157.71,2.54193313]
[1724499804793,6.3364,157.82,157.7,21.35554508]
[1724499804973,16.2888,157.8,157.7,5.64284508]
[1724499805170,1.58468609,157.79,157.7,5.64284508]
[1724499805388,16.2888,157.8,157.74,9.87271549]
[1724499805691,16.2888,157.8,157.7,5.64284508]
[1724499805876,1.58457574,157.79,157.74,9.87271549]
[1724499806192,16.2888,157.8,157.7,5.64284508]
[1724499806372,16.2888,157.8,157.76,9.87271549]
[1724499806694,16.2888,157.8,157.75,9.87271549]
[1724499806988,16.2888,157.8,157.71,7.06431416]
[1724499807191,16.2888,157.8,157.75,9.87271549]
[1724499808577,16.2888,157.8,157.76,0.12549]
[1724499808782,16.2888,157.8,157.77,9.87271549]
[1724499810879,6.5954,157.83,157.77,9.87271549]
[1724499811101,6.5954,157.83,157.79,9.87271549]
[1724499811894,16.2888,157.85,157.79,9.87271549]
[1724499816690,16.2888,157.85,157.8,0.12549]
[1724499818082,17.87273367,157.85,157.79,9.87271549]
[1724499818284,1.58400682,157.84,157.71,7.06431416]
[1724499818614,1.58400682,157.84,157.78,9.87271549]
[1724499820493,1.58400682,157.84,157.74,0.25098]
[1724499820692,1.58400682,157.84,157.78,9.87271549]
[1724499822187,1.58400682,157.84,157.77,9.87271549]
[1724499823718,16.2888,157.85,157.78,0.86655174]
[1724499823899,1.58422196,157.84,157.77,9.87271549]
[1724499824103,1.58422196,157.84,157.78,0.12549]
[1724499824453,16.2888,157.85,157.78,0.12549]
[1724499826793,16.2888,157.85,157.78,0.99160118]
[1724499826999,16.2888,157.85,157.79,9.87271549]
[1724499827616,16.2888,157.85,157.8,0.12549]
[1724499828708,16.2888,157.85,157.8,0.99124445]
[1724499830519,16.2888,157.85,157.83,9.87271549]
[1724499834244,16.2888,157.85,157.81,0.12549]
[1724499834528,16.2888,157.85,157.82,9.87271549]
[1724499834727,15.0865,157.89,157.83,0.12549]
[1724499835715,15.0865,157.89,157.84,9.87271549]
[1724499837919,15.5614319,157.88,157.78,6.0047579]
[1724499838123,15.5614319,157.87,157.83,9.87271549]
[1724499838358,15.0865,157.89,157.83,9.87271549]
[1724499838520,15.56129615,157.86,157.79,20.0]
[1724499838840,23.4902096,157.85,157.81,9.87271549]
[1724499839010,15.56129615,157.84,157.82,45.0]
[1724499839209,15.56129615,157.83,157.82,45.0]
[1724499839532,15.56129615,157.83,157.82,54.87271549]
[1724499840031,15.0865,157.89,157.82,54.87271549]
[1724499840333,1.58579201,157.88,157.82,9.99820549]
[1724499840521,3.16963125,157.87,157.8,9.87271549]
[1724499840721,1.58579201,157.86,157.8,9.87271549]
[1724499840945,1.58383885,157.88,157.8,9.87271549]
[1724499841122,1.58383885,157.88,157.79,20.0]
[1724499841309,1.58591099,157.87,157.79,9.87271549]
[1724499841638,3.16979149,157.86,157.79,9.87271549]
[1724499841936,1.58390071,157.88,157.79,9.87271549]
[1724499842924,9.87271549,157.85,157.74,14.48206104]
[1724499843122,1.58426248,157.84,157.75,9.87271549]
[1724499843520,1.58426248,157.84,157.74,7.92375861]
[1724499843521,21.2135,157.82,157.74,7.92375861]
[1724499843718,1.58447352,157.81,157.73,15.87747339]
[1724499843925,22.79798486,157.82,157.73,15.87747339]
[1724499844627,22.79798486,157.82,157.73,9.87271549]
[1724499845720,21.2135,157.82,157.74,0.86716841]
[1724499846122,21.2135,157.82,157.72,9.87271549]
[1724499846354,27.5499,157.82,157.73,0.86740451]
[1724499846539,7.92133335,157.81,157.72,9.87271549]
[1724499846745,17.79404884,157.81,157.72,9.87271549]
[1724499847561,16.20941549,157.81,157.72,9.87271549]
[1724499847727,21.2135,157.82,157.74,9.87271549]
[1724499847943,22.79800038,157.82,157.74,9.87271549]
[1724499848136,22.79800038,157.82,157.7,10.44080801]
[1724499848334,22.79800038,157.82,157.73,9.87271549]
[1724499849288,39.00701587,157.82,157.73,9.87271549]
[1724499850027,27.5498,157.82,157.74,0.86743157]
[1724499853753,9.87271549,157.81,157.74,0.86743157]
[1724499854073,9.87271549,157.81,157.73,0.86742299]
[1724499855249,9.87271549,157.79,157.69,9.69221108]
[1724499855439,1.58482637,157.78,157.69,13.00405797]
[1724499855638,15.9828,157.8,157.7,0.8678585]
[1724499855845,25.85551549,157.8,157.71,9.87271549]
[1724499856055,27.44016044,157.8,157.71,9.87271549]
[1724499856259,1.58464928,157.79,157.71,9.87271549]
[1724499856837,1.58464928,157.79,157.72,0.12549]
[1724499857155,1.58464928,157.79,157.7,0.12549]
[1724499857362,32.19261549,157.8,157.7,9.99820549]
[1724499857531,32.19261549,157.8,157.71,0.99334748]
[1724499858368,32.19261549,157.8,157.71,0.12549]
[1724499858862,22.4448,157.73,157.66,6.5620408]
[1724499859067,22.4448,157.73,157.65,0.849621]
[1724499859241,32.31751549,157.73,157.65,0.849621]
[1724499859434,22.4448,157.73,157.65,10.72233649]
[1724499859741,22.4448,157.73,157.67,9.87271549]
[1724499859953,15.9828,157.73,157.69,9.87271549]
[1724499860262,15.9828,157.73,157.71,9.87271549]
[1724499860672,22.4448,157.77,157.71,9.87271549]
[1724499861246,22.4448,157.77,157.7,0.12549]
[1724499861469,1.58482242,157.76,157.65,0.849621]
[1724499861666,22.4448,157.77,157.68,9.87271549]
[1724499861868,24.02974265,157.77,157.69,45.25098]
[1724499862075,1.58494287,157.76,157.69,45.25098]
[1724499862761,16.21141549,157.76,157.66,9.87271549]
[1724499862970,1.58523599,157.75,157.66,9.87271549]
[1724499863165,9.87271549,157.74,157.65,0.849621]
[1724499863354,15.9828,157.73,157.65,0.849621]
[1724499863763,17.5680566,157.73,157.65,0.849621]
[1724499864178,6.462,157.71,157.65,0.849621]
[1724499864387,8.04734355,157.71,157.65,0.849621]
[1724499864554,1.58539496,157.7,157.65,0.849621]
[1724499865787,6.462,157.71,157.65,0.849621]
[1724499865983,6.462,157.71,157.66,0.12549]
[1724499866359,9.87271549,157.68,157.6,6.56599322]
[1724499866561,1.58600083,157.67,157.57,9.87271549]
[1724499866765,9.87271549,157.66,157.57,9.87271549]
[1724499866969,1.58602346,157.65,157.57,9.87271549]
[1724499867601,1.58602346,157.65,157.52,64.41368678]
[1724499867602,6.3424,157.67,157.59,9.87271549]
[1724499867760,1.58601174,157.69,157.59,9.87271549]
[1724499867761,9.87271549,157.68,157.59,9.87271549]
[1724499867961,52.61221549,157.7,157.61,9.87271549]
[1724499868176,1.58578269,157.69,157.59,9.87271549]
[1724499868381,16.21501549,157.68,157.59,9.87271549]
[1724499868585,1.58599651,157.67,157.59,9.87271549]
[1724499869879,1.58599651,157.67,157.6,0.12549]
[1724499870074,16.21501549,157.68,157.6,0.99603911]
[1724499870389,1.58593411,157.67,157.6,0.12549]
[1724499870687,1.58593411,157.67,157.59,9.87271549]
[1724499870911,22.7395,157.7,157.61,9.87271549]
[1724499871067,22.7395,157.7,157.63,9.87271549]
[1724499871401,16.4862,157.7,157.65,9.87271549]
[1724499871562,22.7395,157.74,157.67,9.87271549]
[1724499872067,1.58512951,157.73,157.67,9.87271549]
[1724499872272,24.32462944,157.74,157.67,9.87271549]
[1724499872960,1.5851295,157.73,157.67,9.87271549]
[1724499873275,22.7395,157.74,157.67,9.87271549]
[1724499873991,1.35058382,157.73,157.62,9.87271549]
[1724499874187,34.19761518,157.74,157.65,9.87271549]
[1724499874517,24.32489969,157.74,157.65,9.87271549]
[1724499874781,24.32489969,157.74,157.67,9.87271549]
[1724499874782,22.7395,157.74,157.67,9.87271549]
[1724499874986,22.7395,157.74,157.69,9.87271549]
[1724499875168,22.7395,157.74,157.61,50.0]
[1724499875375,22.7395,157.74,157.67,9.87271549]
[1724499875580,22.7395,157.74,157.62,65.25098]
[1724499875788,22.7395,157.74,157.67,9.87271549]
[1724499875980,22.7395,157.74,157.68,0.86883988]
[1724499876582,22.7395,157.74,157.67,9.87271549]
[1724499878578,22.7395,157.74,157.68,0.25098]
[1724499879870,22.7395,157.74,157.68,45.25098]
[1724499880392,22.7395,157.74,157.69,9.87271549]
[1724499880579,16.4862,157.74,157.7,0.12549]
[1724499880889,16.4862,157.74,157.7,0.25098]
[1724499881091,16.4862,157.74,157.71,9.87271549]
[1724499882397,16.4862,157.74,157.69,9.87271549]
[1724499882695,16.4862,157.74,157.7,0.25098]
[1724499882891,16.4862,157.74,157.69,9.87271549]
[1724499883496,16.4862,157.74,157.68,45.12549]
[1724499883699,16.4862,157.74,157.69,0.25098]
[1724499884079,16.4862,157.74,157.68,45.0]
[1724499884287,16.4862,157.74,157.66,9.87271549]
[1724499886301,16.4862,157.74,157.65,0.12549]
[1724499886484,16.4862,157.74,157.66,9.87271549]
[1724499887289,22.8258,157.74,157.66,9.87271549]
[1724499887482,16.4862,157.74,157.66,9.87271549]
[1724499887909,1.58518627,157.73,157.66,9.87271549]
[1724499888408,1.58518627,157.73,157.65,0.12549]
[1724499888585,6.0349,157.72,157.65,0.25098]
[1724499888794,6.0349,157.72,157.65,10.12369549]
[1724499890199,6.0349,157.72,157.57,26.56101462]
[1724499890200,1.58538865,157.71,157.57,26.56101462]
[1724499890401,9.87271549,157.69,157.57,6.56101462]
[1724499890608,1.58573773,157.68,157.59,9.87271549]
[1724499890813,6.3419,157.68,157.59,9.87271549]
[1724499891116,6.0349,157.66,157.59,9.87271549]
[1724499893413,1.5859061,157.65,157.54,15.0396]
[1724499893713,9.87271549,157.63,157.53,6.56339274]
[1724499893931,1.58633904,157.62,157.52,9.87271549]
[1724499894231,7.93093904,157.62,157.5,5.50053158]
[1724499894514,16.0416,157.61,157.52,9.87271549]
[1724499894679,1.58646031,157.6,157.52,9.87271549]
[1724499894884,16.0416,157.61,157.54,9.87271549]
[1724499896490,1.58641088,157.6,157.48,6.56426297]
[1724499896692,1.58641088,157.6,157.51,24.77738214]
[1724499897312,16.0416,157.61,157.52,24.77738214]
[1724499897313,6.0349,157.59,157.52,24.77738214]
[1724499898186,6.0349,157.59,157.54,24.77738214]
[1724499898388,16.0416,157.61,157.56,24.77738214]
[1724499898707,16.0416,157.61,157.57,45.25098]
[1724499900518,6.0349,157.63,157.58,24.77738214]
[1724499901216,6.0349,157.63,157.59,0.25098]
[1724499901718,6.0349,157.63,157.59,45.25098]
[1724499902416,16.0416,157.65,157.6,25.64767137]
[1724499902624,16.0416,157.65,157.62,24.77738214]
[1724499903116,16.0416,157.65,157.61,0.25098]
[1724499903117,16.0416,157.65,157.61,25.02836214]
[1724499903417,6.0349,157.67,157.62,45.0]
[1724499903622,6.0349,157.67,157.61,0.12549]
[1724499903922,6.0349,157.67,157.57,24.77738214]
[1724499904094,6.0349,157.67,157.58,45.25098]
[1724499904295,6.0349,157.67,157.59,24.77738214]
[1724499904515,6.0349,157.67,157.6,45.25098]
[1724499904700,6.0349,157.67,157.61,24.77738214]
[1724499904913,6.0349,157.67,157.62,45.25098]
[1724499905393,6.0349,157.67,157.63,24.77738214]
[1724499905592,16.0416,157.69,157.64,0.25098]
[1724499905795,16.0416,157.69,157.54,20.0]
[1724499906115,1.58570728,157.68,157.58,24.77738214]
[1724499907625,1.58570728,157.68,157.59,0.25098]
[1724499907927,7.92770728,157.68,157.59,45.25098]
[1724499908094,7.928197,157.67,157.58,24.77738214]
[1724499908621,1.585797,157.67,157.58,24.77738214]
[1724499909843,16.0416,157.69,157.59,46.12140713]
[1724499910127,16.0416,157.69,157.62,24.77738214]
[1724499910292,16.0416,157.69,157.63,45.25098]
[1724499910722,16.0416,157.69,157.55,20.86990373]
[1724499911027,16.0416,157.69,157.6,24.77738214]
[1724499911198,16.0416,157.69,157.61,45.25098]
[1724499912025,16.0416,157.69,157.64,24.77738214]
[1724499912228,16.0416,157.69,157.65,45.25098]
[1724499912797,16.0416,157.69,157.65,0.25098]
[1724499915725,16.0416,157.69,157.65,46.1199736]
[1724499915899,16.0416,157.69,157.65,45.25098]
[1724499916104,16.0416,157.69,157.66,24.77738214]
[1724499916430,16.0416,157.69,157.67,45.25098]
[1724499917301,16.4298,157.74,157.67,45.25098]
[1724499917828,16.4298,157.74,157.61,20.0]
[1724499918033,18.01491605,157.74,157.64,24.77738214]
[1724499918200,16.4298,157.74,157.65,45.12549]
[1724499918401,16.4298,157.74,157.66,0.12549]
[1724499919031,16.4298,157.74,157.66,24.90287214]
[1724499919330,16.4298,157.74,157.67,69.90287214]
[1724499919505,16.4298,157.74,157.69,24.77738214]
[1724499919747,16.4298,157.74,157.7,46.11884397]
[1724499919910,16.4298,157.74,157.71,24.77738214]
[1724499920123,16.4298,157.78,157.72,45.25098]
[1724499920331,16.4298,157.78,157.73,0.86726201]
[1724499920949,16.4298,157.78,157.75,24.77738214]
[1724499921121,16.4298,157.82,157.74,0.12549]
[1724499921323,16.4298,157.82,157.75,0.12549]
[1724499921525,16.4298,157.82,157.75,0.25098]
[1724499922652,18.01413546,157.82,157.75,0.25098]
[1724499928045,16.4298,157.82,157.75,0.25098]
[1724499929062,16.4298,157.82,157.67,0.86669451]
[1724499929364,6.3375,157.8,157.65,408.989]
[1724499929567,1.58479964,157.79,157.66,24.77738214]
[1724499929765,26.36218178,157.79,157.65,22.089]
[1724499929948,26.36218178,157.79,157.66,24.77738214]
[1724499930355,26.36218178,157.79,157.65,22.089]
[1724499930552,46.58088214,157.81,157.68,24.77738214]
[1724499930742,21.8035,157.81,157.7,24.77738214]
[1724499931358,0.2536,157.73,157.67,24.77738214]